fUSD/lending_fUSD_20250608
["ID","MTS","AMOUNT","RATE_DAILY","PERIOD"]
[364981324,1749377443999,-150.0,0.00019178,2]
[364981326,1749377444008,-163.27,0.00019178,2]
[364981328,1749377444017,-163.27,0.00019178,2]
[364981330,1749377444026,-150.0,0.00019178,2]
[364981332,1749377444036,-800.0,0.000192,7]
[364981334,1749377444045,-174.47170687,0.000192,2]
[364981336,1749377444055,-150.0,0.00019205,2]
[364981338,1749377444064,-150.0,0.00019205,2]
[364981340,1749377444073,-150.0,0.00019205,2]
[364981342,1749377444082,-150.0,0.00019205,2]
[364981344,1749377444092,-150.0,0.00019205,2]
[364981346,1749377444101,-150.0,0.00019205,2]
[364981348,1749377444110,-500.0,0.00019205,2]
[364981349,1749377444119,-3727.74,0.00019206,2]
[364981351,1749377444130,-1927.0,0.00019228,2]
[364981353,1749377444140,-200.0,0.00019233,2]
[364981355,1749377444149,-248.0,0.00019233,2]
[364981357,1749377444159,-150.0,0.00019233,2]
[364981359,1749377444168,-201.73416078,0.00019233,2]
[364981362,1749377444185,-200.0,0.00019233,2]
[364981363,1749377444195,-200.63288875,0.00019233,2]
[364981365,1749377444204,-464.0,0.00019233,2]
[364981367,1749377444213,-30833.79568259,0.00019242,2]
[364981369,1749377444223,-1088.05012565,0.00019242,2]
[364981371,1749377444232,-150.0,0.0001926,2]
[364981373,1749377444241,-2676.29555993,0.00019261,2]
[364981375,1749377444251,-185.56769454,0.00019288,2]
[364981377,1749377444260,-6710.64339627,0.000193,2]
[364981547,1749377446316,-480.0,0.00019178,2]
[364981549,1749377446325,-761.31729803,0.000193,2]
[364981898,1749377683264,150.0,0.0001705,2]
[364981899,1749377893358,-151.08969336,0.00017373,2]
[364981900,1749377895170,-53.91030664,0.00017373,2]
[364981906,1749378158909,309.64,0.00013699,2]
[364981908,1749378253905,604.75,0.00016218,2]
[364981913,1749378472590,9715.01133621,0.00013,15]
[364981926,1749378568314,522.73855683,0.00016164,2]
[364981927,1749378577325,500.0,0.00016164,2]
[364981938,1749378631541,-150.0,0.00018078,7]
[364981939,1749378631551,-450.0,0.00018101,2]
[364981940,1749378631651,-477.05835835,0.00018101,2]
[364981941,1749378631663,-72.94164165,0.00018101,2]
[364981942,1749378631672,-600.0,0.00018151,4]
[364981943,1749378631682,-1000.0,0.000182,2]
[364981944,1749378631691,-166.60134337,0.000182,2]
[364981945,1749378631700,-160.45701498,0.00018212,4]
[364982265,1749378637423,-439.54298502,0.00018212,4]
[364982266,1749378637432,-1200.0,0.00018381,2]
[364982267,1749378637443,-1957.856,0.00018382,2]
[364982268,1749378637454,-207.4,0.00018382,2]
[364982269,1749378637463,-3723.71931287,0.00018393,2]
[364982270,1749378637584,-10522.04382838,0.00018393,2]
[364982271,1749378637692,-340.73264628,0.00018393,2]
[364982713,1749378642404,-491.95238989,0.00018393,2]
[364982723,1749378642621,-6288.78853201,0.00018393,2]
[364982735,1749378642731,-1128.63329057,0.00018393,2]
[364982737,1749378642740,-205.0,0.00018418,2]
[364982739,1749378642749,-427.03865665,0.00018437,2]
[364982740,1749378642759,-604.75,0.00018482,2]
[364982742,1749378642768,-166.66,0.00018754,2]
[364982744,1749378642777,-459.7,0.000188,2]
[364982746,1749378642787,-719.41691397,0.0001885,2]
[364982748,1749378642797,-102.1242186,0.00018876,2]
[364982924,1749378645559,-554.8757814,0.00018876,2]
[364982925,1749378645569,-477.059,0.000189,2]
[364982926,1749378645579,-4082.0,0.000189,2]
[364982927,1749378645589,-7020.0,0.000189,2]
[364982928,1749378645598,-883.0,0.000189,2]
[364982929,1749378645609,-500.0,0.00018904,2]
[364982930,1749378645619,-461.11,0.00018932,2]
[364982931,1749378645629,-461.11,0.00018932,2]
[364982932,1749378645638,-461.11,0.00018932,2]
[364982933,1749378645647,-1458.0,0.00018958,2]
[364982934,1749378645657,-685.91,0.00019,2]
[364982935,1749378645667,-250.0,0.00019,2]
[364982936,1749378645678,-461.11,0.00019,2]
[364982937,1749378645688,-1065.12,0.0001904,2]
[364982938,1749378645698,-875.0,0.00019053,2]
[364982939,1749378645708,-1873.40689196,0.00019078,2]
[364982940,1749378645719,-153.18707652,0.00019078,2]
[364982941,1749378645728,-300.0,0.000191,6]
[364982942,1749378645738,-202.877,0.00019105,2]
[364982943,1749378645747,-13511.27392039,0.0001911,2]
[364982944,1749378645757,-165.070732,0.00019115,2]
[364982945,1749378645767,-500.0,0.00019166,2]
[364982946,1749378645777,-518.5,0.00019166,2]
[364982947,1749378645787,-234.92142407,0.00019166,2]
[364982948,1749378645796,-1873.40689195,0.00019169,2]
[364982949,1749378645806,-188.17040497,0.00019177,2]
[364982950,1749378645816,-212.58041566,0.00019177,2]
[364982951,1749378645825,-159.64883016,0.00019177,2]
[364982952,1749378645835,-480.0,0.00019178,2]
[364982953,1749378645844,-182.1681774,0.00019178,2]
[364982954,1749378645853,-480.0,0.00019178,2]
[364982955,1749378645864,-480.0,0.00019178,2]
[364982956,1749378645873,-480.0,0.00019178,2]
[364982957,1749378645883,-480.0,0.00019178,2]
[364982958,1749378645893,-480.0,0.00019178,2]
[364982959,1749378645904,-271.40961354,0.00019178,2]
[364982960,1749378645913,-480.0,0.00019178,2]
[364982961,1749378645922,-1000.0,0.00019178,2]
[364982962,1749378645931,-480.0,0.00019178,2]
[364982963,1749378645940,-480.0,0.00019178,2]
[364982964,1749378645949,-517.78,0.00019178,2]
[364982965,1749378645958,-625.94104965,0.00019178,2]
[364982966,1749378645969,-480.0,0.00019178,2]
[364982967,1749378645978,-480.0,0.00019178,2]
[364982968,1749378645987,-558.19,0.00019178,2]
[364982969,1749378645996,-480.0,0.00019178,2]
[364982970,1749378646006,-715.61,0.00019178,2]
[364982971,1749378646016,-480.0,0.00019178,2]
[364982972,1749378646027,-480.0,0.00019178,2]
[364982973,1749378646036,-480.0,0.00019178,2]
[364982974,1749378646046,-480.0,0.00019178,2]
[364982975,1749378646055,-355.37006182,0.00019178,2]
[364982976,1749378646066,-480.0,0.00019178,2]
[364982977,1749378646075,-480.0,0.00019178,2]
[364982978,1749378646084,-1450.94,0.00019178,2]
[364982979,1749378646093,-480.0,0.00019178,2]
[364982980,1749378646103,-1345.48,0.00019178,2]
[364982981,1749378646111,-605.1,0.00019178,2]
[364982982,1749378646120,-569.90187157,0.00019178,2]
[364982983,1749378646130,-10.20876567,0.00019178,2]
[364982984,1749378646142,-469.79123433,0.00019178,2]
[364982985,1749378646152,-230.57576152,0.00019178,2]
[364982986,1749378646163,-513.53423848,0.00019178,2]
[364982987,1749378646173,-480.0,0.00019178,2]
[364982988,1749378646183,-480.0,0.00019178,2]
[364982989,1749378646193,-480.0,0.00019178,2]
[364982990,1749378646202,-405.42348351,0.00019178,2]
[364982991,1749378646219,-74.57651649,0.00019178,2]
[364982992,1749378646228,-480.0,0.00019178,2]
[364982993,1749378646237,-289.76881232,0.00019178,2]
[364982994,1749378646248,-190.23118768,0.00019178,2]
[364982995,1749378646257,-480.0,0.00019178,2]
[364982996,1749378646268,-480.0,0.00019178,2]
[364982997,1749378646277,-480.0,0.00019178,2]
[364982998,1749378646287,-480.0,0.00019178,2]
[364982999,1749378646296,-1681.65629235,0.00019178,2]
[364983000,1749378646308,-365.47100809,0.00019178,2]
[364983001,1749378646325,-845.47269956,0.00019178,2]
[364983002,1749378646334,-674.82,0.00019178,2]
[364983003,1749378646344,-440.72029332,0.00019178,2]
[364983004,1749378646361,-39.27970668,0.00019178,2]
[364983005,1749378646370,-480.0,0.00019178,2]
[364983006,1749378646379,-1213.72,0.00019178,2]
[364983007,1749378646388,-480.0,0.00019178,2]
[364983008,1749378646398,-480.0,0.00019178,2]
[364983009,1749378646407,-480.0,0.00019178,2]
[364983010,1749378646416,-703.05,0.00019178,2]
[364983011,1749378646426,-1564.63,0.00019178,2]
[364983012,1749378646435,-480.0,0.00019178,2]
[364983013,1749378646447,-1619.81,0.00019178,2]
[364983014,1749378646457,-2143.09,0.00019178,2]
[364983015,1749378646466,-480.0,0.00019178,2]
[364983016,1749378646675,-480.0,0.00019178,2]
[364983017,1749378646686,-480.0,0.00019178,2]
[364983018,1749378646696,-648.39,0.00019178,2]
[364983019,1749378646706,-571.4,0.00019178,2]
[364983020,1749378646715,-517.39,0.00019178,2]
[364983021,1749378646725,-480.0,0.00019178,2]
[364983022,1749378646736,-480.0,0.00019178,2]
[364983023,1749378646746,-480.0,0.00019178,2]
[364983024,1749378646757,-2845.09,0.00019178,2]
[364983025,1749378646767,-480.0,0.00019178,2]
[364983026,1749378646776,-2800.13,0.00019178,2]
[364983027,1749378646786,-480.0,0.00019178,2]
[364983028,1749378646796,-848.37,0.00019178,2]
[364983029,1749378646806,-463.57872336,0.00019178,2]
[364983030,1749378646818,-480.0,0.00019178,2]
[364983031,1749378646827,-727.5,0.00019178,2]
[364983032,1749378646838,-480.0,0.00019178,2]
[364983033,1749378646849,-866.94,0.00019178,2]
[364983034,1749378646859,-26171.63156996,0.00019178,2]
[364983036,1749378805715,500.0,0.00016164,2]
[364983043,1749379227801,294.15,0.00013699,2]
[364983045,1749379263259,575.85,0.00016329,2]
[364983046,1749379305507,2142.41816315,0.0001705,2]
[364983268,1749379839883,-150.0,0.00018104,7]
[364983270,1749379839892,-450.0,0.00018109,2]
[364983272,1749379839904,-750.0,0.00018109,2]
[364983274,1749379839912,-319.07453213,0.0001811,2]
[364983562,1749379842910,-40581.98792862,0.0001811,2]
[364983564,1749379842920,-600.0,0.00018145,4]
[364983565,1749379842930,-600.0,0.00018191,4]
[364983567,1749379842939,-1000.0,0.00018217,2]
[364983569,1749379842948,-153.02,0.00018302,2]
[364983571,1749379842957,-78.75298167,0.00018593,2]
[364983591,1749379845915,-497.09701833,0.00018593,2]
[364983592,1749379845924,-461.11,0.000186,2]
[364983593,1749379845933,-205.0,0.00018616,2]
[364983594,1749379845942,-343.43991848,0.00018889,2]
[364983602,1749379886955,5563.0,0.000142,5]
[364983603,1749379887213,5563.0,0.00014,3]
[364983604,1749379887462,3609.0,0.000139,2]
[364983611,1749380369700,287.19,0.00013699,2]
[364983613,1749380377498,335.5003941,0.00016039,2]
[364983614,1749380399298,571.09,0.00016126,2]
[364983615,1749380411958,205.0,0.00016616,2]
[364983624,1749381031733,-586.92837782,0.0001754,2]
[364983625,1749381031743,-13.07162218,0.00017546,4]
[364983626,1749381031888,-586.92837782,0.00017546,4]
[364983627,1749381031901,-172.64796715,0.0001764,2]
[364983628,1749381031911,-600.0,0.00017716,4]
[364983629,1749381031921,-150.0,0.00017804,7]
[364983630,1749381031930,-1000.0,0.00017979,2]
[364983631,1749381031941,-150.0,0.00018009,2]
[364983632,1749381031950,-461.11,0.00018041,2]
[364983633,1749381031960,-290.42,0.00018064,2]
[364983634,1749381031969,-158.03,0.00018104,7]
[364983635,1749381031979,-1200.0,0.0001814,2]
[364983636,1749381031988,-461.11,0.00018141,2]
[364983637,1749381031999,-461.11,0.00018141,2]
[364983638,1749381032008,-300.0,0.0001824,2]
[364983639,1749381032017,-461.11,0.00018241,2]
[364983640,1749381032027,-459.52907564,0.00018241,2]
[364983641,1749381032046,-1.58092436,0.00018241,2]
[364983642,1749381032055,-172.64796715,0.00018291,2]
[364983643,1749381032065,-461.11,0.000183,2]
[364983644,1749381032074,-3815.82,0.00018356,2]
[364983645,1749381032085,-571.09,0.0001839,2]
[364983646,1749381032095,-300.0,0.00018398,2]
[364983647,1749381032107,-2340.08,0.000184,2]
[364983648,1749381032116,-150.27,0.000184,2]
[364983649,1749381032125,-461.11,0.000184,2]
[364983650,1749381032134,-150.0,0.000184,2]
[364983651,1749381032143,-150.0,0.000184,2]
[364983652,1749381032152,-150.0,0.000184,2]
[364983653,1749381032162,-170.05,0.000185,2]
[364983654,1749381032171,-461.11,0.000185,2]
[364983655,1749381032181,-168.25,0.00018588,2]
[364983656,1749381032190,-376.65454766,0.00018633,2]
[364983659,1749381037663,-3423.424943,0.00017452,2]
[364983660,1749381037673,-832.40435543,0.00018633,2]
[364983661,1749381037825,-748.79709691,0.00018633,2]
[364983662,1749381037835,-207.4,0.00018633,2]
[364983663,1749381037845,-731.56272309,0.00018644,2]
[364983664,1749381037878,-522.43727691,0.00018644,2]
[364983665,1749381037887,-4957.847,0.00018644,2]
[364983666,1749381037900,-883.0,0.00018644,2]
[364983667,1749381037910,-852.0,0.00018644,2]
[364983668,1749381037919,-2030.296672,0.00018688,2]
[364983669,1749381037928,-645.58308603,0.00018705,2]
[364983670,1749381037938,-1789.25482802,0.00018743,2]
[364983671,1749381037950,-316.16282084,0.00018743,2]
[364983672,1749381037959,-1559.59,0.00018792,2]
[364983673,1749381037969,-32.4480356,0.00018792,2]
[364983674,1749381037980,-117.5519644,0.00018792,2]
[364983675,1749381037990,-170.54,0.00018792,2]
[364983676,1749381038000,-2183.31810187,0.00018798,2]
[364983677,1749381038009,-2264.10087164,0.00018853,2]
[364983678,1749381038019,-182.87005665,0.0001887,2]
[364983679,1749381038028,-1000.0,0.00018877,2]
[364983680,1749381038038,-500.0,0.00018877,2]
[364983682,1749381038048,-500.0,0.00018877,2]
[364983684,1749381038058,-500.0,0.00018877,2]
[364983685,1749381038068,-500.0,0.00018877,2]
[364983686,1749381038077,-500.0,0.00018877,2]
[364983687,1749381038087,-500.0,0.00018877,2]
[364983689,1749381038096,-500.0,0.00018877,2]
[364983691,1749381038105,-500.0,0.00018877,2]
[364983693,1749381038115,-151.0,0.00018877,2]
[364983695,1749381038125,-500.0,0.00018877,2]
[364983697,1749381038134,-500.0,0.00018877,2]
[364983699,1749381038144,-500.0,0.00018877,2]
[364983701,1749381038154,-500.0,0.00018877,2]
[364983703,1749381038164,-500.0,0.00018877,2]
[364983704,1749381038173,-277.43644453,0.00018877,2]
[364983706,1749381038182,-500.0,0.00018877,2]
[364983708,1749381038192,-500.0,0.00018877,2]
[364983710,1749381038202,-500.0,0.00018877,2]
[364983712,1749381038211,-500.0,0.00018877,2]
[364983714,1749381038220,-500.0,0.00018877,2]
[364983716,1749381038230,-500.0,0.00018877,2]
[364983718,1749381038240,-500.0,0.00018877,2]
[364983720,1749381038249,-317.62342494,0.00018877,2]
[364983722,1749381038259,-500.0,0.00018877,2]
[364983724,1749381038268,-500.0,0.00018877,2]
[364983726,1749381038278,-500.0,0.00018877,2]
[364983728,1749381038287,-500.0,0.00018877,2]
[364983730,1749381038297,-500.0,0.00018877,2]
[364983732,1749381038306,-500.0,0.00018877,2]
[364983734,1749381038315,-511.24758381,0.00018877,2]
[364983736,1749381038324,-170.63,0.000189,2]
[364983738,1749381038333,-170.63,0.000189,2]
[364983740,1749381038343,-500.0,0.00018904,2]
[364983742,1749381038351,-2347.87260389,0.00018908,2]
[364983744,1749381038362,-165.070732,0.00018913,2]
[364983746,1749381038371,-172.64796715,0.00018942,2]
[364983747,1749381038381,-2434.74389024,0.00018963,2]
[364983749,1749381038391,-228.37,0.00019,2]
[364983751,1749381038399,-461.11,0.00019,2]
[364983753,1749381038409,-170.63,0.00019,2]
[364983755,1749381038419,-461.11,0.00019,2]
[364983757,1749381038428,-708.68,0.00019,2]
[364983759,1749381038438,-504.0,0.00019,2]
[364983761,1749381038447,-1948.89195741,0.00019018,2]
[364983763,1749381038458,-500.0,0.00019042,2]
[364983765,1749381038468,-500.0,0.00019042,2]
[364983767,1749381038477,-500.0,0.00019042,2]
[364983769,1749381038487,-500.0,0.00019042,2]
[364983771,1749381038497,-500.0,0.00019042,2]
[364983773,1749381038506,-500.0,0.00019042,2]
[364983775,1749381038516,-619.17310993,0.00019042,2]
[364983777,1749381038525,-500.0,0.00019042,2]
[364983779,1749381038534,-2095.58,0.00019042,2]
[364983781,1749381038544,-150.89541992,0.00019078,2]
[364983783,1749381038553,-1000.0,0.00019078,2]
[364983785,1749381038563,-2500.0,0.00019078,2]
[364983787,1749381038572,-162.301,0.00019087,2]
[364983788,1749381038581,-13281.89081426,0.000191,2]
[364983790,1749381038591,-400.0,0.000191,6]
[364983792,1749381038600,-156.290974,0.0001913,17]
[364983794,1749381038609,-156.290974,0.0001913,17]
[364983796,1749381038619,-212.0,0.0001915,2]
[364983798,1749381038628,-192.01655721,0.00019178,2]
[364983800,1749381038638,-480.0,0.00019178,2]
[364983802,1749381038648,-480.0,0.00019178,2]
[364983804,1749381038657,-171.09514,0.00019178,2]
[364983806,1749381038666,-520.25,0.00019178,2]
[364983808,1749381038675,-480.0,0.00019178,2]
[364983810,1749381038685,-500.0,0.00019178,2]
[364983812,1749381038694,-500.0,0.00019178,2]
[364983814,1749381038703,-500.0,0.00019178,2]
[364983816,1749381038712,-500.0,0.00019178,2]
[364983818,1749381038722,-500.0,0.00019178,2]
[364983820,1749381038731,-500.0,0.00019178,2]
[364983822,1749381038742,-500.0,0.00019178,2]
[364983824,1749381038752,-500.0,0.00019178,2]
[364983826,1749381038761,-500.0,0.00019178,2]
[364983828,1749381038771,-213.84072302,0.00019178,2]
[364983830,1749381038780,-480.0,0.00019178,2]
[364983832,1749381038790,-480.0,0.00019178,2]
[364983834,1749381038800,-480.0,0.00019178,2]
[364983835,1749381038809,-480.0,0.00019178,2]
[364983837,1749381038818,-1000.0,0.00019178,2]
[364983839,1749381038827,-480.0,0.00019178,2]
[364983841,1749381038836,-480.0,0.00019178,2]
[364983843,1749381038846,-480.0,0.00019178,2]
[364983845,1749381038855,-480.0,0.00019178,2]
[364983847,1749381038864,-480.0,0.00019178,2]
[364983849,1749381038874,-519.66,0.00019178,2]
[364983851,1749381038883,-586.7,0.00019178,2]
[364983853,1749381038892,-480.0,0.00019178,2]
[364983855,1749381038905,-151.0,0.00019178,2]
[364983857,1749381038915,-216.85644,0.00019178,2]
[364983859,1749381038924,-480.0,0.00019178,2]
[364983861,1749381038933,-440.0,0.00019178,2]
[364983863,1749381038947,-480.0,0.00019178,2]
[364983865,1749381038955,-480.0,0.00019178,2]
[364983867,1749381038965,-480.0,0.00019178,2]
[364983869,1749381038974,-480.0,0.00019178,2]
[364983871,1749381038984,-480.0,0.00019178,2]
[364983873,1749381038994,-151.0,0.00019178,2]
[364983875,1749381039004,-180.89091,0.00019178,2]
[364983877,1749381039013,-480.0,0.00019178,2]
[364983879,1749381039023,-578.84634277,0.00019178,2]
[364983881,1749381039031,-480.0,0.00019178,2]
[364983883,1749381039040,-480.0,0.00019178,2]
[364983885,1749381039050,-480.0,0.00019178,2]
[364983887,1749381039059,-646.7,0.00019178,2]
[364983889,1749381039069,-2772.08,0.00019178,2]
[364983891,1749381039078,-1163.15,0.00019178,2]
[364983893,1749381039087,-480.0,0.00019178,2]
[364983895,1749381039095,-446.38986705,0.00019178,2]
[364983970,1749381040016,-362.516,0.00018644,2]
[364983972,1749381040026,-33.61013295,0.00019178,2]
[364983974,1749381040036,-480.0,0.00019178,2]
[364983976,1749381040046,-422.632491,0.00019178,2]
[364983978,1749381040056,-422.632491,0.00019178,2]
[364983980,1749381040066,-480.0,0.00019178,2]
[364983982,1749381040076,-1552.32,0.00019178,2]
[364983984,1749381040085,-480.0,0.00019178,2]
[364983986,1749381040094,-480.0,0.00019178,2]
[364983988,1749381040103,-1499.44,0.00019178,2]
[364983990,1749381040113,-480.0,0.00019178,2]
[364983992,1749381040122,-2053.79,0.00019178,2]
[364983994,1749381040132,-480.0,0.00019178,2]
[364983996,1749381040141,-673.75,0.00019178,2]
[364983998,1749381040150,-480.0,0.00019178,2]
[364983999,1749381040160,-480.0,0.00019178,2]
[364984001,1749381040169,-837.51,0.00019178,2]
[364984003,1749381040179,-480.0,0.00019178,2]
[364984005,1749381040188,-245.75122312,0.00019178,2]
[364984007,1749381040197,-547.59,0.00019178,2]
[364984009,1749381040207,-480.0,0.00019178,2]
[364984011,1749381040216,-2683.46,0.00019178,2]
[364984013,1749381040225,-480.0,0.00019178,2]
[364984015,1749381040235,-495.83,0.00019178,2]
[364984017,1749381040244,-14150.23451663,0.00019178,2]
[364984020,1749381040265,-632.16482541,0.00019178,2]
[364984227,1749381042774,-400.0,0.00019178,2]
[364984253,1749381045792,-1109.6409991,0.00019178,2]
[364984254,1749381046103,-1276.326,0.00019178,2]
[364984255,1749381046114,-1086.359,0.00019178,2]
[364984256,1749381046125,-13552.63624533,0.00019178,2]
[364984261,1749381076507,500.0,0.00016164,2]
[364984266,1749381324398,272.83,0.00013699,2]
[364984268,1749381411749,544.21,0.00016291,2]
[364984275,1749381821292,205.0,0.00016232,2]
[364984276,1749381835897,5670.20867905,0.00015,2]
[364984280,1749382076958,2807.75132095,0.00016,30]
[364984281,1749382076979,10000.0,0.00016,30]
[364984282,1749382077000,8.81095259,0.00016,30]
[364984293,1749382187633,9991.18904741,0.00017051,2]
[364984294,1749382187657,8.81095259,0.00017051,2]
[364984296,1749382211758,3434.9,0.00017051,2]
[364984302,1749382232302,-1440.199866,0.00017439,2]
[364984303,1749382232313,-600.0,0.00017483,4]
[364984304,1749382232323,-92.55818729,0.00017527,4]
[364984305,1749382232335,-507.44181271,0.00017527,4]
[364984306,1749382232345,-600.0,0.00017676,4]
[364984307,1749382232357,-323.29,0.00017755,2]
[364984308,1749382232367,-916.0990483,0.00017794,2]
[364984309,1749382232387,-543.05095719,0.00017794,2]
[364984310,1749382232398,-1291.84999451,0.00017794,2]
[364984311,1749382232408,-150.0,0.00017838,7]
[364984313,1749382232417,-1000.0,0.00017838,2]
[364984315,1749382232426,-300.0,0.00017869,2]
[364984316,1749382232435,-1009.71465488,0.00017869,2]
[364984317,1749382232448,-190.28534512,0.00017869,2]
[364984318,1749382232458,-277.98009982,0.0001787,2]
[364984419,1749382237826,-22.01990018,0.0001787,2]
[364984421,1749382237835,-4784.00912265,0.00017871,2]
[364984422,1749382237881,-1366.525,0.00017871,2]
[364984423,1749382237990,-1822.91154471,0.00017871,2]
[364984424,1749382237999,-200.0,0.00017886,2]
[364984425,1749382238009,-1810.2052784,0.00018,2]
[364984426,1749382238018,-290.41,0.00018089,2]
[364984427,1749382238027,-3162.33,0.00018226,2]
[364984428,1749382238037,-7500.83,0.00018235,2]
[364984429,1749382238046,-10572.4,0.0001826,2]
[364984430,1749382238055,-1957.856,0.00018309,2]
[364984431,1749382238065,-151.0,0.00018309,2]
[364984432,1749382238074,-151.0,0.00018309,2]
[364984433,1749382238083,-286.31503645,0.00018309,2]
[364984434,1749382238093,-500.0,0.00018309,2]
[364984435,1749382238102,-207.4,0.00018309,2]
[364984436,1749382238111,-153.02,0.00018313,2]
[364984437,1749382238121,-163.27,0.00018356,2]
[364984438,1749382238130,-150.0,0.00018356,2]
[364984439,1749382238139,-163.27,0.00018356,2]
[364984440,1749382238149,-150.0,0.00018356,2]
[364984441,1749382238158,-163.12,0.00018356,2]
[364984442,1749382238168,-150.0,0.00018356,2]
[364984443,1749382238177,-150.0,0.00018356,2]
[364984444,1749382238186,-910.41333267,0.00018364,2]
[364984445,1749382238195,-150.68287783,0.00018548,2]
[364984446,1749382238204,-544.21,0.00018555,2]
[364984448,1749382238213,-883.0,0.00018622,2]
[364984450,1749382238222,-852.0,0.00018622,2]
[364984452,1749382238231,-150.68287783,0.00018685,2]
[364984454,1749382238240,-173.205252,0.00018794,2]
[364984456,1749382238250,-1162.98,0.00018795,2]
[364984458,1749382238259,-150.68287783,0.00018822,2]
[364984460,1749382238268,-624.4891217,0.00018871,2]
[364984461,1749382238278,-205.0,0.00018879,2]
[364984463,1749382238289,-1250.946,0.000189,2]
[364984465,1749382238299,-155.0,0.000189,2]
[364984467,1749382238308,-500.0,0.00018904,2]
[364984469,1749382238317,-150.68287783,0.00018959,2]
[364984471,1749382238327,-1637.55823389,0.00019016,2]
[364984473,1749382238336,-500.0,0.00019024,2]
[364984475,1749382238345,-500.0,0.00019025,2]
[364984477,1749382238356,-178.12,0.00019041,2]
[364984479,1749382238365,-2640.94,0.00019042,2]
[364984481,1749382238375,-3061.2169144,0.00019078,2]
[364984483,1749382238385,-150.68287783,0.00019096,2]
[364984485,1749382238394,-400.0,0.000191,6]
[364984487,1749382238403,-2938.51050329,0.00019123,2]
[364984489,1749382238412,-159.26458581,0.00019142,2]
[364984490,1749382238422,-350.0,0.00019159,2]
[364984492,1749382238431,-500.0,0.00019167,2]
[364984494,1749382238440,-150.0,0.00019167,2]
[364984496,1749382238449,-500.0,0.00019167,2]
[364984498,1749382238458,-150.0,0.00019167,2]
[364984500,1749382238467,-500.0,0.00019167,2]
[364984502,1749382238476,-150.0,0.00019167,2]
[364984504,1749382238485,-150.0,0.00019167,2]
[364984506,1749382238495,-150.0,0.00019167,2]
[364984508,1749382238504,-150.0,0.00019167,2]
[364984510,1749382238513,-150.0,0.00019167,2]
[364984512,1749382238523,-162.301,0.00019168,2]
[364984514,1749382238531,-500.0,0.00019168,2]
[364984516,1749382238540,-500.0,0.00019168,2]
[364984518,1749382238550,-500.0,0.00019168,2]
[364984520,1749382238559,-500.0,0.00019168,2]
[364984522,1749382238569,-150.0,0.00019168,2]
[364984523,1749382238578,-431.89,0.00019168,3]
[364984525,1749382238587,-3061.21691439,0.00019169,2]
[364984527,1749382238597,-200.59119507,0.00019177,2]
[364984529,1749382238606,-480.0,0.00019178,2]
[364984531,1749382238616,-498.57,0.00019178,2]
[364984533,1749382238626,-480.0,0.00019178,2]
[364984535,1749382238635,-480.0,0.00019178,2]
[364984537,1749382238645,-480.0,0.00019178,2]
[364984539,1749382238654,-480.0,0.00019178,2]
[364984541,1749382238664,-524.94,0.00019178,2]
[364984543,1749382238673,-480.0,0.00019178,2]
[364984545,1749382238682,-480.0,0.00019178,2]